fUSD/lending_fUSD_20260126
["ID","MTS","AMOUNT","RATE_DAILY","PERIOD"]
[403640324,1769443115673,-500.0,0.00017489,2]
[403640325,1769443115712,-211.42882488,0.00017489,2]
[403640326,1769443115817,-288.57117512,0.00017489,2]
[403640327,1769443115855,-500.0,0.00017489,2]
[403640328,1769443115889,-500.0,0.00017489,2]
[403640329,1769443115923,-500.0,0.00017489,2]
[403640330,1769443115959,-500.0,0.00017489,2]
[403640331,1769443115994,-500.0,0.00017489,2]
[403640332,1769443116028,-295.90295321,0.00017489,2]
[403640333,1769443116061,-500.0,0.00017489,2]
[403640334,1769443116306,-500.0,0.00017489,2]
[403640335,1769443116370,-500.0,0.00017489,2]
[403640336,1769443116404,-331.06174334,0.00017489,2]
[403640337,1769443116574,-168.93825666,0.00017489,2]
[403640338,1769443116610,-500.0,0.00017489,2]
[403640339,1769443116644,-500.0,0.00017489,2]
[403640340,1769443116678,-500.0,0.00017489,2]
[403640341,1769443116713,-500.0,0.00017489,2]
[403640342,1769443116747,-500.0,0.00017489,2]
[403640343,1769443116782,-500.0,0.00017489,2]
[403640344,1769443116816,-500.0,0.00017489,2]
[403640345,1769443116849,-500.0,0.00017489,2]
[403640346,1769443116883,-500.0,0.00017489,2]
[403640347,1769443116916,-162.13348668,0.00017489,2]
[403640348,1769443117070,-337.86651332,0.00017489,2]
[403640349,1769443117105,-500.0,0.00017489,2]
[403640350,1769443117142,-350.0,0.00017489,2]
[403640351,1769443117176,-1127.0,0.00017489,2]
[403640352,1769443117206,-1187.29942836,0.00017489,5]
[403640353,1769443117235,-1187.29942836,0.00017489,5]
[403640355,1769443583970,-151.0,0.00016502,2]
[403640356,1769443584003,-151.0,0.00016504,2]
[403640357,1769443584036,-151.0,0.00016507,2]
[403640358,1769443584065,-151.0,0.0001651,2]
[403640359,1769443584096,-200.0,0.00016672,2]
[403640360,1769443584127,-200.0,0.00016805,2]
[403640361,1769443584157,-158.77791206,0.000171,2]
[403640362,1769443584198,-2398.411,0.0001714,2]
[403640363,1769443584231,-151.424,0.0001714,2]
[403640364,1769443584262,-300.0,0.00017389,2]
[403640365,1769443584297,-150.00319292,0.0001739,2]
[403640366,1769443584328,-688.6564478,0.0001739,2]
[403640367,1769443584546,-297.46489444,0.0001739,2]
[403640368,1769443587806,-610.66307493,0.0001739,2]
[403640369,1769443587842,-210.33107488,0.0001739,2]
[403640370,1769443587874,-208.96760515,0.0001739,2]
[403640371,1769443587906,-986.12134216,0.00017447,2]
[403640372,1769443587937,-610.66307491,0.00017447,2]
[403640373,1769443587967,-721.12765535,0.00017479,2]
[403640374,1769443587999,-705.97670987,0.00017479,2]
[403640375,1769443588033,-250.0,0.00017479,2]
[403640376,1769443588065,-250.0,0.00017479,2]
[403640377,1769443588095,-392.3089255,0.00017479,2]
[403640378,1769443588284,-107.6910745,0.00017479,2]
[403640379,1769443588316,-250.0,0.00017479,2]
[403640380,1769443588349,-202.09093963,0.00017479,2]
[403640381,1769443588381,-250.0,0.00017479,2]
[403640382,1769443588411,-250.0,0.00017479,2]
[403640383,1769443588441,-250.0,0.00017479,2]
[403640384,1769443588471,-250.0,0.00017479,2]
[403640385,1769443588501,-174.61919141,0.00017479,2]
[403640386,1769443588531,-250.0,0.00017479,2]
[403640387,1769443588562,-250.0,0.00017479,2]
[403640388,1769443588592,-250.0,0.00017479,2]
[403640389,1769443588622,-151.0,0.00017479,2]
[403640390,1769443588665,-250.0,0.00017479,2]
[403640391,1769443588698,-686.20758892,0.00017479,2]
[403640392,1769443588808,-2856.79241108,0.00017479,2]
[403640393,1769443588840,-322.6107,0.00017479,2]
[403640394,1769443588876,-500.0,0.00017479,2]
[403640395,1769443588908,-500.0,0.00017479,2]
[403640396,1769443588940,-500.0,0.00017479,2]
[403640397,1769443588970,-141.20377784,0.00017479,2]
[403640398,1769443589078,-358.79622216,0.00017479,2]
[403640399,1769443589110,-250.0,0.00017479,2]
[403640400,1769443589142,-366.51378963,0.00017479,2]
[403640401,1769443589174,-250.0,0.00017479,2]
[403640402,1769443589205,-250.0,0.00017479,2]
[403640403,1769443589236,-250.0,0.00017479,2]
[403640404,1769443589267,-250.0,0.00017479,2]
[403640405,1769443589301,-250.0,0.00017479,2]
[403640406,1769443589334,-854.2589148,0.00017479,2]
[403640407,1769443589366,-250.0,0.00017479,2]
[403640408,1769443589397,-500.0,0.00017479,2]
[403640409,1769443589735,-250.0,0.00017479,2]
[403640410,1769443589767,-500.0,0.00017479,2]
[403640411,1769443589798,-250.0,0.00017479,2]
[403640412,1769443589833,-90.87214682,0.00017479,2]
[403640413,1769443589951,-159.12785318,0.00017479,2]
[403640414,1769443589983,-500.0,0.00017479,2]
[403640415,1769443590015,-250.0,0.00017479,2]
[403640416,1769443590048,-250.0,0.00017479,2]
[403640417,1769443590084,-500.0,0.00017479,2]
[403640418,1769443590118,-250.0,0.00017479,2]
[403640419,1769443590149,-500.0,0.00017479,2]
[403640420,1769443590182,-500.0,0.00017479,2]
[403640421,1769443590213,-250.0,0.00017479,2]
[403640422,1769443590246,-500.0,0.00017479,2]
[403640423,1769443590280,-500.0,0.00017479,2]
[403640424,1769443590316,-250.0,0.00017479,2]
[403640425,1769443590356,-500.0,0.00017479,2]
[403640426,1769443590500,-500.0,0.00017479,2]
[403640427,1769443590529,-250.0,0.00017479,2]
[403640428,1769443590558,-500.0,0.00017479,2]
[403640429,1769443590588,-422.17952928,0.00017479,2]
[403640430,1769443590616,-151.0,0.00017479,2]
[403640431,1769443590645,-250.0,0.00017479,2]
[403640432,1769443590676,-500.0,0.00017479,2]
[403640433,1769443590707,-151.0,0.00017479,2]
[403640434,1769443590736,-250.0,0.00017479,2]
[403640435,1769443590766,-250.0,0.00017479,2]
[403640436,1769443590796,-500.0,0.00017479,2]
[403640437,1769443590826,-250.0,0.00017479,2]
[403640438,1769443590855,-250.0,0.00017479,2]
[403640439,1769443590885,-500.0,0.00017479,2]
[403640440,1769443590915,-250.0,0.00017479,2]
[403640441,1769443591599,-250.0,0.00017479,2]
[403640442,1769443591629,-500.0,0.00017479,2]
[403640443,1769443591658,-250.0,0.00017479,2]
[403640444,1769443591687,-250.0,0.00017479,2]
[403640445,1769443591716,-500.0,0.00017479,2]
[403640446,1769443591747,-250.0,0.00017479,2]
[403640447,1769443591777,-500.0,0.00017479,2]
[403640448,1769443591807,-250.0,0.00017479,2]
[403640449,1769443591838,-250.0,0.00017479,2]
[403640450,1769443591868,-500.0,0.00017479,2]
[403640451,1769443591898,-250.0,0.00017479,2]
[403640452,1769443591927,-250.0,0.00017479,2]
[403640453,1769443591956,-250.0,0.00017479,2]
[403640454,1769443592238,-250.0,0.00017479,2]
[403640455,1769443592268,-283.03053858,0.00017479,2]
[403640456,1769443592700,-433.94892284,0.00017479,2]
[403640457,1769443595416,-160.51,0.00016816,2]
[403640458,1769443595427,-236.61471873,0.0001748,2]
[403640459,1769443595468,-250.0,0.0001748,2]
[403640460,1769443595487,-500.0,0.0001748,2]
[403640461,1769443595506,-250.0,0.0001748,2]
[403640462,1769443595521,-250.0,0.0001748,2]
[403640463,1769443595564,-500.0,0.0001748,2]
[403640464,1769443595580,-250.0,0.0001748,2]
[403640465,1769443595607,-250.0,0.0001748,2]
[403640466,1769443595627,-250.0,0.0001748,2]
[403640467,1769443595647,-250.0,0.0001748,2]
[403640468,1769443595780,-716.97946142,0.0001748,2]
[403640469,1769443595957,-433.94892284,0.0001748,2]
[403640470,1769443595977,-8782.23115521,0.0001748,2]
[403640471,1769443595986,-161.26241929,0.00017489,2]
[403640472,1769443595996,-188.61857982,0.00017489,2]
[403640473,1769443596048,-676.63142018,0.00017489,2]
[403640474,1769443596058,-865.25,0.00017489,2]
[403640475,1769443596068,-865.25,0.00017489,2]
[403640476,1769443596077,-865.25,0.00017489,2]
[403640477,1769443596088,-865.25,0.00017489,2]
[403640478,1769443596098,-865.25,0.00017489,2]
[403640479,1769443596108,-865.25,0.00017489,2]
[403640480,1769443596118,-865.25,0.00017489,2]
[403640481,1769443596128,-865.25,0.00017489,2]
[403640482,1769443596137,-865.25,0.00017489,2]
[403640483,1769443596147,-865.25,0.00017489,2]
[403640484,1769443596156,-670.87857982,0.00017489,2]
[403640485,1769443596226,-194.37142018,0.00017489,2]
[403640486,1769443596236,-865.25,0.00017489,2]
[403640487,1769443596247,-865.25,0.00017489,2]
[403640488,1769443596256,-865.25,0.00017489,2]
[403640489,1769443596266,-865.25,0.00017489,2]
[403640490,1769443596277,-865.25,0.00017489,2]
[403640491,1769443596289,-865.25,0.00017489,2]
[403640492,1769443596299,-865.25,0.00017489,2]
[403640493,1769443596309,-865.25,0.00017489,2]
[403640494,1769443596319,-865.25,0.00017489,2]
[403640495,1769443596329,-865.25,0.00017489,2]
[403640496,1769443596344,-865.25,0.00017489,2]
[403640497,1769443596355,-287.88857982,0.00017489,2]
[403640498,1769443596407,-577.53536982,0.00017489,2]
[403640499,1769443596416,-746.5424047,0.00017489,2]
[403640500,1769443596426,-198.22175812,0.00017489,2]
[403640501,1769443596435,-578.20924308,0.0001749,2]
[403640503,1769443709968,7569.83,0.00014057,2]
[403640510,1769443832141,-151.0,0.00016178,2]
[403640511,1769443832150,-586.79736898,0.00017068,2]
[403640512,1769443832160,-1000.0,0.0001726,2]
[403640513,1769443832171,-500.0,0.00017299,2]
[403640514,1769443832180,-146656.21247809,0.000173,2]
[403640515,1769443832191,-9614.59914669,0.000173,2]
[403640516,1769443832202,-1410.1452036,0.000173,2]
[403640517,1769443832214,-620.98453335,0.000173,2]
[403640531,1769443838045,-184.83641182,0.00017299,2]
[403640533,1769443838055,-617.81441777,0.00017299,2]
[403640534,1769443838065,-500.0,0.00017299,2]
[403640535,1769443838074,-500.0,0.00017299,2]
[403640536,1769443838084,-624.63888975,0.00017299,2]
[403640537,1769443838093,-15500.22774128,0.000173,2]
[403640538,1769443839620,-500.78571235,0.000173,2]
[403640539,1769443839632,-2434.24970126,0.000173,2]
[403640540,1769443839644,-3518.61986626,0.000173,2]
[403640541,1769443839656,-807.3850608,0.000173,2]
[403640542,1769443839676,-2139.79794945,0.000173,2]
[403640605,1769443840398,-182.84665448,0.0001729,2]
[403640607,1769443840408,-18139.88449397,0.000173,2]
[403640616,1769443840483,-501.41710255,0.000173,2]
[403640618,1769443840494,-35514.90000001,0.000173,2]
[403640625,1769443840546,-762640.79101034,0.000173,2]
[403640627,1769443840556,-1029.8167,0.0001739,2]
[403640629,1769443840565,-788.8970738,0.0001739,2]
[403640631,1769443840574,-150.00278071,0.0001739,2]
[403640633,1769443840583,-69326.5698799,0.000174,4]
[403640635,1769443840592,-788.89707372,0.00017447,2]
[403640637,1769443840602,-322.6107,0.00017479,2]
[403640639,1769443840612,-721.12765535,0.00017479,2]
[403640641,1769443840622,-500.0,0.00017479,2]
[403640643,1769443840631,-854.2589148,0.00017479,2]
[403640645,1769443840641,-500.0,0.00017479,2]
[403640647,1769443840650,-500.0,0.00017479,2]
[403640649,1769443840659,-500.0,0.00017479,2]
[403640651,1769443840669,-530.22168037,0.00017479,2]
[403640653,1769443840678,-174.61919141,0.00017479,2]
[403640655,1769443840687,-3543.0,0.00017479,2]
[403640657,1769443840696,-151.0,0.00017479,2]
[403640659,1769443840705,-250.0,0.00017479,2]
[403640661,1769443840714,-278.12393243,0.00017479,2]
[403640663,1769443840723,-500.0,0.00017479,2]
[403640665,1769443840732,-500.0,0.00017479,2]
[403640667,1769443840741,-500.0,0.00017479,2]
[403640669,1769443840751,-500.0,0.00017479,2]
[403640671,1769443840760,-500.0,0.00017479,2]
[403640673,1769443840769,-500.0,0.00017479,2]
[403640675,1769443840778,-500.0,0.00017479,2]
[403640676,1769443840788,-500.0,0.00017479,2]
[403640678,1769443840797,-500.0,0.00017479,2]
[403640681,1769443840807,-500.0,0.00017479,2]
[403640683,1769443840817,-500.0,0.00017479,2]
[403640684,1769443840825,-150.0,0.00017479,2]
[403640686,1769443840835,-600.01,0.0001749,2]
[403640689,1769443840845,-600.01,0.0001749,2]
[403640690,1769443840854,-600.01,0.0001749,2]
[403640693,1769443840864,-600.01,0.0001749,2]
[403640695,1769443840874,-828.63,0.0001749,2]
[403640697,1769443840884,-297.33263719,0.0001749,2]
[403640699,1769443840893,-373.27120235,0.0001749,2]
[403640701,1769443840904,-373.27120235,0.0001749,2]
[403640703,1769443840914,-297.33263719,0.0001749,2]
[403640705,1769443840923,-200.0,0.0001749,2]
[403640707,1769443840933,-788.89707372,0.00017503,2]
[403640709,1769443840942,-500.0,0.00017513,2]
[403640711,1769443840952,-150.0,0.00017513,2]
[403640713,1769443840961,-465.0,0.00017513,2]
[403640715,1769443840972,-151.0,0.0001752,2]
[403640717,1769443840981,-235.38620648,0.00017533,2]
[403640719,1769443840990,-1000.0,0.00017534,2]
[403640721,1769443840999,-788.89707372,0.0001756,2]
[403640723,1769443841008,-500.0,0.00017568,2]
[403640725,1769443841018,-225.04776947,0.00017568,2]
[403640727,1769443841027,-465.0,0.00017568,2]
[403640729,1769443841037,-151.0,0.00017568,2]
[403640730,1769443841046,-150.0,0.00017616,2]
[403640733,1769443841057,-151.0,0.00017616,2]
[403640771,1769443841397,-788.89707372,0.00017617,2]
[403640776,1769443841434,-1000.0,0.0001762,2]
[403640778,1769443841444,-500.0,0.00017623,2]
[403640780,1769443841454,-465.0,0.00017623,2]
[403640782,1769443841464,-151.0,0.00017664,2]
[403640784,1769443841472,-200.0,0.00017665,2]
[403640786,1769443841481,-150.0,0.00017671,2]
[403640788,1769443841490,-788.89707372,0.00017673,2]
[403640790,1769443841499,-500.0,0.00017677,2]
[403640792,1769443841508,-465.0,0.00017677,2]
[403640794,1769443841518,-305.29758295,0.00017707,2]
[403640796,1769443841527,-151.0,0.00017712,2]
[403640798,1769443841536,-150.0,0.00017726,2]
[403640801,1769443841554,-788.89707372,0.0001773,2]
[403640803,1769443841565,-500.0,0.00017732,2]
[403640805,1769443841574,-465.0,0.00017732,2]
[403640807,1769443841584,-2016.26466095,0.00017747,2]
[403640809,1769443841594,-151.0,0.0001776,2]
[403640811,1769443841604,-150.0,0.0001778,2]
[403640813,1769443841614,-788.89707372,0.00017787,2]
[403640815,1769443841623,-500.0,0.00017787,2]
[403640817,1769443841633,-465.0,0.00017787,2]
[403640819,1769443841642,-151.0,0.00017808,2]
[403640821,1769443841652,-1000.0,0.00017808,2]
[403640824,1769443841662,-598.5248,0.0001782,2]
[403640826,1769443841672,-598.5248,0.0001782,2]
[403640828,1769443841681,-223.95112934,0.00017835,2]
[403640830,1769443841691,-500.0,0.00017842,2]
[403640832,1769443841700,-465.0,0.00017842,2]
[403640834,1769443841709,-200.0,0.00017842,2]
[403640836,1769443841719,-788.89707372,0.00017843,2]
[403640838,1769443841728,-200.0,0.00017856,2]
[403640840,1769443841738,-151.0,0.00017856,2]
[403640842,1769443841748,-282.79803731,0.00017867,2]
[403640844,1769443841758,-382.635,0.00017867,2]
[403640846,1769443841768,-500.0,0.00017897,2]
[403640848,1769443841777,-465.0,0.00017897,2]
[403640850,1769443841787,-610.66307491,0.000179,2]
[403640852,1769443841797,-788.89707372,0.000179,2]
[403640854,1769443841806,-4410.0,0.000179,2]
[403640856,1769443841816,-151.0,0.00017904,2]
[403640858,1769443841826,-4831.0,0.00017949,2]
[403640860,1769443841835,-6570.0,0.00017949,2]
[403640862,1769443841845,-2442.0,0.00017949,2]
[403640864,1769443841855,-500.0,0.00017951,2]
[403640866,1769443841865,-465.0,0.00017951,2]
[403640868,1769443841875,-151.0,0.00017952,2]
[403640870,1769443841884,-500.0,0.00017973,2]
[403640872,1769443841894,-500.0,0.00017973,2]
[403640874,1769443841903,-282.28,0.00017981,2]
[403640876,1769443841913,-500.0,0.00017982,2]
[403640878,1769443841922,-150.0,0.0001799,2]
[403640880,1769443841932,-150.0,0.0001799,2]
[403640882,1769443841941,-152.21,0.0001799,2]
[403640884,1769443841951,-152.21,0.0001799,2]
[403640886,1769443841961,-152.21,0.0001799,2]
[403640889,1769443841971,-152.21,0.0001799,2]
[403640891,1769443841981,-152.21,0.0001799,2]
[403640893,1769443841992,-152.21,0.0001799,2]
[403640895,1769443842003,-152.21,0.0001799,2]
[403640897,1769443842013,-152.21,0.0001799,2]
[403640899,1769443842022,-152.21,0.0001799,2]
[403640901,1769443842033,-152.21,0.0001799,2]
[403640903,1769443842047,-152.21,0.0001799,2]
[403640905,1769443842058,-152.21,0.0001799,2]
[403640907,1769443842068,-152.21,0.0001799,2]
[403640909,1769443842078,-152.21,0.0001799,2]
[403640911,1769443842090,-152.21,0.0001799,2]
[403640913,1769443842100,-152.21,0.0001799,2]
[403640915,1769443842110,-152.21,0.0001799,2]
[403640917,1769443842120,-198.0,0.00017994,2]
[403640919,1769443842130,-1187.29942835,0.00017999,5]
[403640921,1769443842139,-300.0,0.00017999,2]
[403640923,1769443842149,-1220171.23415336,0.00018,2]
[403640925,1769443842158,-2633119.36262773,0.00018,2]
[403641025,1769443845972,-1352.2161202,0.00017483,2]
[403641026,1769443845982,-182.84665447,0.00017663,2]
[403641027,1769443845992,-962343.66314491,0.00018,2]
[403641028,1769443846022,-3848.68264906,0.00018,2]
[403641029,1769443846101,-1086.16217251,0.00018,2]
[403641030,1769443846260,-13541.50215,0.00018,2]
[403641040,1769444051731,-151.0,0.00016444,2]
[403641041,1769444051760,-222.2,0.00016915,2]
[403641042,1769444051788,-3240.0,0.00017017,2]
[403641043,1769444051818,-1000.0,0.00017205,2]
[403641044,1769444051847,-300.0,0.00017298,2]
[403641045,1769444051949,-173.61,0.00017299,2]
[403641046,1769444052011,-326.39,0.00017299,2]
[403641047,1769444052040,-282.47009244,0.00017299,2]
[403641048,1769444052072,-500.0,0.00017299,2]
[403641049,1769444052102,-500.0,0.00017299,2]
[403641050,1769444052132,-500.0,0.00017299,2]
[403641051,1769444052162,-500.0,0.00017299,2]
[403641052,1769444052193,-339.43079286,0.00017299,2]
[403641053,1769444052655,-4103.4282294,0.000173,2]
[403641054,1769444052670,-10000.01,0.000173,2]
[403641055,1769444052694,-10000.01,0.000173,2]
[403641056,1769444052804,-10000.01,0.000173,2]
[403641057,1769444052836,-10000.01,0.000173,2]
[403641058,1769444052849,-10000.01,0.000173,2]
[403641059,1769444052863,-10000.01,0.000173,2]
[403641060,1769444052917,-10000.01,0.000173,2]
[403641061,1769444052977,-10000.01,0.000173,2]
[403641062,1769444053145,-10000.01,0.000173,2]
[403641063,1769444053491,-10000.01,0.000173,2]
[403641064,1769444053629,-10000.01,0.000173,2]
[403641065,1769444053827,-10000.01,0.000173,2]
[403641066,1769444053904,-10000.01,0.000173,2]
[403641067,1769444064406,-151.0,0.00016487,2]
[403641068,1769444064448,-9698.01,0.000173,2]
[403641069,1769444067150,-10000.01,0.000173,2]
[403641070,1769444067166,-10000.01,0.000173,2]
[403641071,1769444067407,-10000.01,0.000173,2]
[403641096,1769444534481,-151.0,0.00015986,2]
[403641097,1769444534514,-151.0,0.00015987,2]
[403641098,1769444534547,-151.0,0.00015989,2]
[403641099,1769444534579,-151.0,0.00016,2]
[403641100,1769444534611,-284.0,0.00016006,2]
[403641101,1769444534645,-150.00177233,0.00016155,2]
[403641102,1769444534677,-305.558643,0.00016438,2]
[403641103,1769444534708,-222.53705238,0.00016805,2]
[403641104,1769444534738,-1000.0,0.00016822,2]
[403641105,1769444534768,-244.24,0.00016905,2]
[403641106,1769444534798,-250.0,0.00017,2]
[403641107,1769444534831,-488.53046,0.00017222,2]
[403641108,1769444534864,-925.5776452,0.00017222,2]
[403641109,1769444534894,-300.0,0.00017288,2]
[403641110,1769444534926,-151.11885418,0.00017289,2]
[403641111,1769444535144,-148.88114582,0.00017289,2]
[403641112,1769444535178,-1200.0,0.00017289,2]
[403641113,1769444535208,-300.0,0.00017289,2]
[403641114,1769444535240,-174.61919141,0.0001729,2]
[403641115,1769444535271,-322.6107,0.0001729,2]
[403641116,1769444535302,-200.0,0.0001729,2]
[403641117,1769444535333,-1764.78792554,0.0001729,2]
[403641118,1769444535725,-1778.21207446,0.0001729,2]
[403641119,1769444535755,-500.0,0.0001729,2]
[403641120,1769444535783,-500.0,0.0001729,2]
[403641121,1769444535814,-500.0,0.0001729,2]
[403641122,1769444535844,-500.0,0.0001729,2]
[403641123,1769444535876,-587.40001921,0.0001729,2]
[403641124,1769444535906,-317.0,0.00017298,2]
[403641125,1769444536009,-1187.29942835,0.00017299,5]
[403641126,1769444536043,-153.29188127,0.00017299,2]
[403641127,1769444536073,-369.6,0.00017299,2]
[403641128,1769444536103,-500.0,0.00017299,2]
[403641129,1769444536133,-500.0,0.00017299,2]
[403641130,1769444536163,-500.0,0.00017299,2]
[403641131,1769444536193,-561.37306781,0.00017299,2]
[403641132,1769444536224,-542.71122847,0.00017299,2]
[403641133,1769444536259,-500.0,0.00017299,2]
[403641134,1769444536895,-500.0,0.00017299,2]
[403641135,1769444536931,-500.0,0.00017299,2]
[403641136,1769444536961,-286.75596321,0.00017299,2]
[403641137,1769444536996,-373.22739567,0.00017299,2]
[403641138,1769444537032,-500.0,0.00017299,2]
[403641139,1769444537068,-500.0,0.00017299,2]
[403641140,1769444537108,-397.42785554,0.00017299,2]
[403641141,1769444537143,-155.26976172,0.00017299,2]
[403641142,1769444537173,-1655.91904772,0.00017299,2]
[403641143,1769444537426,-262.80995228,0.00017299,2]
[403641144,1769444537456,-151.424,0.00017299,2]
[403641145,1769444539064,-398.07342487,0.000173,2]
[403641146,1769444539080,-397.42785554,0.000173,2]
[403641147,1769444539103,-155.26976172,0.000173,2]
[403641148,1769444539130,-1918.729,0.000173,2]
[403641149,1769444539186,-262.80995228,0.000173,2]
[403641150,1769444539207,-151.424,0.000173,2]
[403641151,1769444539224,-9171.54209544,0.000173,2]
[403641152,1769444539271,-10000.01,0.000173,2]
[403641153,1769444539291,-10000.01,0.000173,2]
[403641154,1769444539311,-10000.01,0.000173,2]
[403641155,1769444539360,-10000.01,0.000173,2]
[403641156,1769444539397,-10000.01,0.000173,2]
[403641157,1769444539428,-10000.01,0.000173,2]
[403641158,1769444539513,-151.0,0.00016016,2]
[403641159,1769444539524,-433.33265435,0.0001729,2]
[403641160,1769444539535,-250.0,0.0001729,2]
[403641161,1769444539547,-9165.67734565,0.000173,2]
[403641162,1769444539564,-10000.01,0.000173,2]
[403641163,1769444540386,-278.12393243,0.0001729,2]
[403641164,1769444540420,-500.0,0.0001729,2]
[403641165,1769444540453,-500.0,0.0001729,2]
[403641166,1769444540535,-7443.76213514,0.000173,2]
[403641167,1769444540612,-10000.01,0.000173,2]
[403641171,1769444594295,1600.02,0.00019178,30]
[403641177,1769444976824,2430.17,0.00015001,2]
[403641178,1769444976853,569.83,0.00015001,2]
[403641179,1769444980283,3000.0,0.00015001,2]
[403641180,1769444994469,3000.0,0.00015001,2]
[403641181,1769445004861,-4560.40169202,0.000162,5]
[403641182,1769445004895,-150.00000089,0.00016366,2]
[403641183,1769445004925,-87.45661418,0.00016384,2]
[403641184,1769445005003,-404.29338582,0.00016384,2]
[403641185,1769445005096,-798.01,0.00016438,2]
[403641186,1769445005128,-1200.0,0.00016536,2]
[403641187,1769445005159,-2744.57,0.00016537,2]
[403641188,1769445005216,-514.85,0.00016537,2]
[403641189,1769445005281,-300.0,0.00016746,2]
[403641190,1769445005317,-300.0,0.00016746,2]
[403641191,1769445005348,-2968.29,0.00016747,2]
[403641192,1769445005406,-2863.43,0.00016747,2]
[403641193,1769445005439,-1000.0,0.00016862,2]
[403641194,1769445005470,-578.20924308,0.00017035,2]
[403641195,1769445005502,-166.69,0.00017061,2]
[403641196,1769445005536,-833.01988068,0.000172,2]
[403641197,1769445005701,-4844.17175248,0.000172,2]
[403641198,1769445006515,-10000.01,0.000172,2]
[403641199,1769445006535,-10000.01,0.000172,2]
[403641200,1769445006786,-10000.01,0.000172,2]
[403641201,1769445006803,-10000.01,0.000172,2]
[403641202,1769445006826,-10000.01,0.000172,2]
[403641203,1769445006852,-10000.01,0.000172,2]
[403641204,1769445006904,-10000.01,0.000172,2]
[403641205,1769445010719,-10000.01,0.000172,2]
[403641206,1769445010823,-10000.01,0.000172,2]
[403641223,1769445032252,-151.0,0.0001617,2]
[403641224,1769445032262,-151.0,0.00016192,2]
[403641225,1769445032272,-150.0,0.00016706,2]
[403641226,1769445032282,-175.77083411,0.000171,2]
[403641227,1769445032291,-137212.44176645,0.000172,2]
[403641228,1769445032303,-21383.54551607,0.000172,2]
[403641229,1769445032314,-630.75339574,0.000172,2]
[403641230,1769445032409,-697.33435166,0.000172,2]
[403641231,1769445032421,-2932.92904728,0.000172,2]
[403641232,1769445032432,-500.0,0.000172,2]
[403641250,1769445038484,-867.29626824,0.000172,2]
[403641251,1769445038496,-2625.30000433,0.000172,2]
[403641252,1769445038515,-2615.92995068,0.000172,2]
[403641253,1769445038530,-956.24,0.000172,2]
[403641254,1769445038542,-2291.59999985,0.000172,2]
[403641449,1769445040437,-527.8250175,0.000172,2]
[403641451,1769445040448,-731914.54292972,0.000172,2]
[403641453,1769445040458,-1029.8167,0.000172,2]
[403641455,1769445040467,-600.01,0.000172,2]
[403641457,1769445040476,-600.01,0.000172,2]
[403641459,1769445040485,-600.01,0.000172,2]
[403641460,1769445040495,-600.01,0.000172,2]
[403641461,1769445040504,-828.63,0.000172,2]
[403641462,1769445040514,-158.77791206,0.00017201,2]
[403641463,1769445040523,-175.7708341,0.00017214,2]
[403641464,1769445040533,-439.677414,0.00017222,2]
[403641465,1769445040543,-1266.0,0.0001726,2]
[403641466,1769445040553,-833.01988062,0.00017278,2]